[Event "TUR-chT Superleague 2018"]
[Site "Ankara"]
[Date "2018.07.27"]
[Round "3"]
[White "Bozbey, Ali"]
[Black "Unat, Can Haktan"]
[Result "1/2-1/2"]
[ECO "C42"]
[WhiteElo "2126"]
[BlackElo "2047"]
[Annotator "NA"]
[PlyCount "88"]
[EventDate "2018.07.25"]
[EventType "team-tourn"]
[EventCountry "TUR"]
[SourceTitle "playchess.com"]
[Source "ChessBase"]
[SourceQuality "1"]
[TimeControl "40/5400+30:1800+30"]

1. e4 {[%emt 0:00:30]} e5 {[%emt 0:01:00]} 2. Nf3 {[%emt 0:01:30]} Nf6 {[%emt 0:00:30]} 3. Nc3 {[%emt 0:00:30]} Bb4 {[%emt 0:00:00]} 4. Nxe5 {[%emt 0:00:30]} O-O {[%emt 0:01:00]} 5. Nd3 {[%emt 0:00:00]} Bxc3 {[%emt 0:00:00]} 6. dxc3 {[%emt 0:00:00]} Nxe4 {[%emt 0:00:00]} 7. Nf4 {[%emt 0:01:30]} d6 {[%emt 0:03:30]} 8. Be3 {[%emt 0:07:30]} Nd7 {[%emt 0:00:30]} 9. Qf3 {[%emt 0:03:30]} Ndf6 {[%emt 0:01:30]} 10. h3 {[%emt 0:00:30]} b6 {[%emt 0:00:30]} 11. Nh5 {[%emt 0:03:30]} Bb7 {[%emt 0:05:30]} 12. Nxf6+ {[%emt 0:00:30]} Qxf6 {[%emt 0:00:00]} 13. Qxf6 {[%emt 0:01:30]} Nxf6 {[%emt 0:00:00]} 14. O-O-O {[%emt 0:00:30]} Rae8 {[%emt 0:01:30]} 15. Rg1 {[%emt 0:01:30]} Nd7 {[%emt 0:01:30]} 16. Bb5 {[%emt 0:01:30]} Re7 {[%emt 0:00:30]} 17. Bxd7 {[%emt 0:05:30]} Rxd7 {[%emt 0:00:30]} 18. g3 {[%emt 0:01:30]} Re8 {[%emt 0:00:30]} 19. Rd4 {[%emt 0:00:30]} Rde7 {[%emt 0:03:30]} 20. Ra4 {[%emt 0:01:30]} a5 {[%emt 0:00:30]} 21. Rd1 {[%emt 0:02:30]} Bf3 {[%emt 0:04:30]} 22. Rd2 {[%emt 0:02:30]} Be4 {[%emt 0:08:30]} 23. Rd1 {[%emt 0:08:30]} Bf3 {[%emt 0:04:30]} 24. Rd2 {[%emt 0:10:30]} Be4 {[%emt 0:00:30]} 25. b4 {[%emt 0:08:30]} Bc6 {[%emt 0:00:30]} 26. Ra3 {[%emt 0:00:30]} a4 {[%emt 0:09:30]} 27. c4 {[%emt 0:05:30]} Re4 {[%emt 0:00:00]} 28. Rc3 {[%emt 0:00:30]} Bd7 {[%emt 0:00:00]} 29. c5 {[%emt 0:01:30]} bxc5 {[%emt 0:05:30]} 30. bxc5 {[%emt 0:00:30]} Be6 {[%emt 0:00:00]} 31. cxd6 {[%emt 0:08:30]} cxd6 {[%emt 0:00:00]} 32. Rxd6 {[%emt 0:00:30]} Bxa2 {[%emt 0:00:30]} 33. Ra6 {[%emt 0:02:30]} Be6 {[%emt 0:03:30]} 34. h4 {[%emt 0:00:30]} h6 {[%emt 0:00:00]} 35. Ra3 {[%emt 0:06:25]} Rc8 {[%emt 0:01:00]} 36. R3xa4 {[%emt 0:01:10]} Rxa4 {[%emt 0:00:30]} 37. Rxa4 {[%emt 0:00:30]} Bb3 {[%emt 0:00:00]} 38. Rb4 {[%emt 0:00:00]} Bxc2 {[%emt 0:00:00]} 39. Kd2 {[%emt 0:00:00]} Bg6 {[%emt 0:00:30]} 40. Rb2 {[%emt 0:00:00]} Rd8+ {[%emt 0:00:30]} 41. Ke2 {[%emt 0:01:25]} Rc8 {[%emt 0:00:30]} 42. Kf3 {[%emt 0:01:30]} h5 {[%emt 0:02:30]} 43. Rb4 {[%emt 0:00:30]} Re8 {[%emt 0:01:30]} 44. Kf4 {[%emt 0:03:30]} Re6 {[%emt 0:00:30]} 1/2-1/2

[Event "TUR-chT Superleague 2018"]
[Site "Ankara"]
[Date "2018.07.27"]
[Round "3"]
[White "Bolat, Ahmet"]
[Black "Asadli, Vugar"]
[Result "0-1"]
[ECO "B20"]
[WhiteElo "2124"]
[BlackElo "2478"]
[Annotator "ChessBase"]
[PlyCount "70"]
[EventDate "2018.07.25"]
[EventType "team-tourn"]
[EventCountry "TUR"]
[SourceTitle "playchess.com"]
[Source "ChessBase"]
[SourceQuality "1"]
[TimeControl "40/5400+30:1800+30"]

1. g3 {[%emt 0:00:30]} g6 {[%emt 0:01:00]} 2. Bg2 {[%emt 0:00:00]} Bg7 {[%emt 0:00:30]} 3. e4 {[%emt 0:02:00]} c5 {[%emt 0:01:30]} 4. f4 {[%emt 0:03:30]} Nc6 {[%emt 0:02:30]} 5. Nf3 {[%emt 0:00:30]} d6 {[%emt 0:01:30]} 6. O-O {[%emt 0:00:30]} e6 {[%emt 0:03:30]} 7. d3 {[%emt 0:02:30]} Nge7 {[%emt 0:00:00]} 8. c3 {[%emt 0:00:00]} O-O {[%emt 0:01:00]} 9. Be3 {[%emt 0:00:00]} b6 {[%emt 0:00:30]} 10. Nbd2 {[%emt 0:09:30]} Ba6 {[%emt 0:01:30]} 11. Qe2 {[%emt 0:00:30]} Qd7 {[%emt 0:06:30]} 12. g4 {[%emt 0:00:30]} d5 {[%emt 0:07:30]} 13. e5 {[%emt 0:01:30]} d4 {[%emt 0:01:30]} 14. cxd4 {[%emt 0:00:30]} cxd4 {[%emt 0:00:30]} 15. Bf2 {[%emt 0:00:00]} Nd5 {[%emt 0:00:00]} 16. Qe4 {[%emt 0:01:00]} f5 {[%emt 0:01:00]} 17. exf6 {[%emt 0:02:30]} Nxf6 {[%emt 0:00:30]} 18. Qe2 {[%emt 0:02:30]} Nd5 {[%emt 0:03:30]} 19. Bg3 {[%emt 0:00:30]} Ne3 {[%emt 0:02:30]} 20. Rfc1 {[%emt 0:01:30]} Rae8 {[%emt 0:03:30]} 21. Ne5 {[%emt 0:16:30]} Nxe5 {[%emt 0:02:30]} 22. fxe5 {[%emt 0:00:30]} Nxg2 {[%emt 0:00:30]} 23. Kxg2 {[%emt 0:00:30]} Bh6 {[%emt 0:00:30]} 24. Rf1 {[%emt 0:03:30]} Be3 {[%emt 0:02:30]} 25. Rxf8+ {[%emt 0:03:30]} Rxf8 {[%emt 0:00:30]} 26. Rf1 {[%emt 0:00:30]} Bb7+ {[%emt 0:23:30]} 27. Ne4 {[%emt 0:02:30]} Rxf1 {[%emt 0:01:30]} 28. Qxf1 {[%emt 0:02:30]} Bxe4+ {[%emt 0:00:30]} 29. dxe4 {[%emt 0:00:30]} d3 {[%emt 0:00:30]} 30. Qd1 {[%emt 0:02:30]} d2 {[%emt 0:00:30]} 31. Bf2 {[%emt 0:02:30]} Bh6 {[%emt 0:00:30]} 32. h4 {[%emt 0:01:30]} Qd3 {[%emt 0:01:30]} 33. Qa4 {[%emt 0:00:30]} d1=Q {[%emt 0:02:30]} 34. Qe8+ {[%emt 0:00:30]} Bf8 {[%emt 0:00:00]} 35. Qxe6+ {[%emt 0:01:30]} Kh8 {[%emt 0:00:00]} 0-1

[Event "TUR-chT Superleague 2018"]
[Site "Ankara"]
[Date "2018.07.27"]
[Round "3"]
[White "Tarlabasi, Emirhan"]
[Black "Ozenir, Ekin Baris"]
[Result "0-1"]
[ECO "E14"]
[WhiteElo "2117"]
[BlackElo "2300"]
[Annotator "NA"]
[PlyCount "88"]
[EventDate "2018.07.25"]
[EventType "team-tourn"]
[EventCountry "TUR"]
[SourceTitle "playchess.com"]
[Source "ChessBase"]
[SourceQuality "1"]
[TimeControl "40/5400+30:1800+30"]

1. d4 Nf6 2. c4 e6 3. Nf3 b6 4. e3 Bb7 5. Bd3 d5 6. O-O Bd6 7. b3 O-O 8. Bb2 Nbd7 9. Nbd2 Ne4 10. a3 a5 11. Qe2 f5 12. Rfd1 Qf6 13. Nf1 Qe7 14. N3d2 c5 15. f3 Nef6 16. cxd5 Nxd5 17. Nc4 Bc7 18. Rac1 Rad8 19. Ne5 cxd4 20. Nxd7 Rxd7 21. Bb5 Rdd8 22. Rxd4 Bd6 23. a4 Bc5 24. Rdc4 e5 25. Kh1 Kh8 26. Rd1 Nc7 27. Rcc1 Nxb5 28. Qxb5 h6 29. Qc4 Rc8 30. Qe2 Qe6 31. Nd2 Rfd8 32. Nc4 Ba6 33. e4 f4 34. Rxd8+ Rxd8 35. Qc2 Be3 36. Re1 Rc8 37. Qd1 Bxc4 38. bxc4 {[%emt 1:24:00]} Rxc4 {[%emt 1:17:30]} 39. Qd8+ {[%emt 0:00:30]} Kh7 {[%emt 0:00:30]} 40. h3 {[%emt 0:00:30]} Rc2 {[%emt 0:30:30]} 41. Ba3 {[%emt 0:31:30]} Qg6 {[%emt 0:02:30]} 42. g4 {[%emt 0:00:00]} fxg3 {[%emt 0:02:30]} 43. Rxe3 {[%emt 0:00:00]} g2+ {[%emt 0:00:30]} 44. Kg1 {[%emt 0:00:30]} Qg3 {[%emt 0:00:00]} 0-1

[Event "TUR-chT Superleague 2018"]
[Site "Ankara"]
[Date "2018.07.27"]
[Round "3"]
[White "Caglar, Ahmet Ata"]
[Black "Yilmaz, Goktan"]
[Result "1/2-1/2"]
[ECO "C84"]
[WhiteElo "2097"]
[BlackElo "2233"]
[Annotator "NA"]
[PlyCount "64"]
[EventDate "2018.07.25"]
[EventType "team-tourn"]
[EventCountry "TUR"]
[SourceTitle "playchess.com"]
[Source "ChessBase"]
[SourceQuality "1"]
[TimeControl "40/5400+30:1800+30"]

1. e4 {[%emt 0:00:30]} e5 {[%emt 0:01:00]} 2. Nf3 {[%emt 0:00:30]} Nc6 {[%emt 0:00:30]} 3. Bb5 {[%emt 0:00:30]} a6 {[%emt 0:00:00]} 4. Ba4 {[%emt 0:00:00]} Nf6 {[%emt 0:00:00]} 5. O-O {[%emt 0:00:00]} Be7 {[%emt 0:00:00]} 6. d3 {[%emt 0:00:30]} b5 {[%emt 0:02:00]} 7. Bb3 {[%emt 0:00:30]} d6 {[%emt 0:00:30]} 8. a4 {[%emt 0:02:30]} b4 {[%emt 0:13:30]} 9. a5 {[%emt 0:02:30]} O-O {[%emt 0:02:30]} 10. Nbd2 {[%emt 0:03:30]} Rb8 {[%emt 0:05:30]} 11. h3 {[%emt 0:02:30]} Be6 {[%emt 0:05:30]} 12. Nc4 {[%emt 0:07:30]} Nd7 {[%emt 0:05:30]} 13. Be3 {[%emt 0:02:30]} Bf6 {[%emt 0:05:30]} 14. Ba4 {[%emt 0:20:30]} Nd4 {[%emt 0:06:30]} 15. Nxd4 {[%emt 0:05:30]} exd4 {[%emt 0:00:00]} 16. Bd2 {[%emt 0:00:30]} Nc5 {[%emt 0:02:00]} 17. b3 {[%emt 0:01:30]} d5 {[%emt 0:07:30]} 18. e5 {[%emt 0:02:30]} dxc4 {[%emt 0:10:30]} 19. exf6 {[%emt 0:00:30]} Qxf6 {[%emt 0:02:30]} 20. bxc4 {[%emt 0:01:30]} Nxa4 {[%emt 0:00:30]} 21. Rxa4 {[%emt 0:00:00]} c5 {[%emt 0:00:30]} 22. Re1 {[%emt 0:06:00]} Rfe8 {[%emt 0:02:30]} 23. Ra1 {[%emt 0:02:30]} Qg6 {[%emt 0:02:30]} 24. Bf4 {[%emt 0:05:30]} Rbc8 {[%emt 0:00:30]} 25. Qf3 {[%emt 0:01:30]} Bd7 {[%emt 0:02:30]} 26. Qg3 {[%emt 0:06:30]} Qxg3 {[%emt 0:07:12]} 27. Bxg3 {[%emt 0:00:30]} Rxe1+ {[%emt 0:03:12]} 28. Rxe1 {[%emt 0:00:30]} Ba4 {[%emt 0:00:21]} 29. Re2 {[%emt 0:00:00]} Re8 {[%emt 0:00:41]} 30. Rxe8+ {[%emt 0:01:00]} Bxe8 {[%emt 0:00:30]} 31. Bd6 {[%emt 0:00:30]} Ba4 {[%emt 0:00:30]} 32. Bxc5 {[%emt 0:00:30]} Bxc2 {[%emt 0:00:30]} 1/2-1/2

[Event "TUR-chT Superleague 2018"]
[Site "Ankara"]
[Date "2018.07.27"]
[Round "3"]
[White "Gulbeyaz, Emir"]
[Black "Samani, Yamac"]
[Result "0-1"]
[ECO "D35"]
[WhiteElo "2074"]
[BlackElo "2227"]
[Annotator "NA"]
[PlyCount "90"]
[EventDate "2018.07.25"]
[EventType "team-tourn"]
[EventCountry "TUR"]
[SourceTitle "playchess.com"]
[Source "ChessBase"]
[SourceQuality "1"]
[TimeControl "40/5400+30:1800+30"]

1. d4 {[%emt 0:00:30]} d5 {[%emt 0:01:00]} 2. Nf3 {[%emt 0:00:00]} Nf6 {[%emt 0:00:00]} 3. c4 {[%emt 0:01:00]} e6 {[%emt 0:00:00]} 4. cxd5 {[%emt 0:00:30]} exd5 {[%emt 0:00:30]} 5. Nc3 {[%emt 0:00:30]} c6 {[%emt 0:00:30]} 6. Qc2 {[%emt 0:00:00]} Be7 {[%emt 0:04:30]} 7. Bf4 {[%emt 0:03:00]} O-O {[%emt 0:00:30]} 8. e3 {[%emt 0:00:00]} a5 {[%emt 0:06:30]} 9. Bd3 {[%emt 0:00:00]} Na6 {[%emt 0:00:30]} 10. a3 {[%emt 0:00:30]} Nc7 {[%emt 0:00:30]} 11. h3 {[%emt 0:00:30]} Ne6 {[%emt 0:04:30]} 12. Bh2 {[%emt 0:00:30]} g6 {[%emt 0:03:30]} 13. O-O {[%emt 0:03:30]} Ng7 {[%emt 0:01:30]} 14. Ne5 {[%emt 0:02:30]} Bf5 {[%emt 0:02:30]} 15. Rab1 {[%emt 0:00:00]} Bxd3 {[%emt 0:02:30]} 16. Qxd3 {[%emt 0:01:00]} a4 {[%emt 0:28:30]} 17. g4 {[%emt 0:00:30]} Nd7 {[%emt 0:04:30]} 18. f4 {[%emt 0:06:30]} f5 {[%emt 0:01:30]} 19. Kh1 {[%emt 0:00:30]} Nxe5 {[%emt 0:02:30]} 20. dxe5 {[%emt 0:02:30]} Ne6 {[%emt 0:04:30]} 21. Ne2 {[%emt 0:02:30]} Nc5 {[%emt 0:01:30]} 22. Qc2 {[%emt 0:03:30]} Ne4 {[%emt 0:05:30]} 23. Nd4 {[%emt 0:01:30]} Qc8 {[%emt 0:06:01]} 24. Rg1 {[%emt 0:09:30]} Bc5 {[%emt 0:02:40]} 25. Rg2 {[%emt 0:09:30]} Bxd4 {[%emt 0:01:10]} 26. exd4 {[%emt 0:00:00]} Qd8 {[%emt 0:00:02]} 27. g5 {[%emt 0:03:00]} Qb6 {[%emt 0:00:35]} 28. Rd1 {[%emt 0:00:30]} Ra5 {[%emt 0:01:31]} 29. Bg3 {[%emt 0:04:30]} Rb5 {[%emt 0:01:02]} 30. Be1 {[%emt 0:01:30]} Rb3 {[%emt 0:00:11]} 31. Kh2 {[%emt 0:04:30]} Qb5 {[%emt 0:00:36]} 32. Bb4 {[%emt 0:00:30]} Re8 {[%emt 0:01:22]} 33. Qc1 {[%emt 0:03:30]} Kf7 {[%emt 0:01:23]} 34. h4 {[%emt 0:04:30]} Rf3 {[%emt 0:03:13]} 35. Kg1 {[%emt 0:09:30]} Rh3 {[%emt 0:02:04]} 36. Be1 {[%emt 0:01:30]} Qb3 {[%emt 0:00:57]} 37. Qc2 {[%emt 0:03:30]} Qe3+ {[%emt 0:00:51]} 38. Bf2 {[%emt 0:00:00]} Qxf4 {[%emt 0:00:30]} 39. Rd3 {[%emt 0:01:00]} Rxd3 {[%emt 0:03:04]} 40. Qxd3 {[%emt 0:00:00]} Qc1+ {[%emt 0:33:22]} 41. Kh2 {[%emt 0:00:00]} Qxb2 {[%emt 0:00:00]} 42. Be3 {[%emt 0:02:30]} Qc3 {[%emt 0:00:00]} 43. Qb1 {[%emt 0:01:30]} Qxe3 {[%emt 0:00:00]} 44. Qxb7+ {[%emt 0:00:00]} Re7 {[%emt 0:00:00]} 45. Qxc6 {[%emt 0:02:00]} Qxd4 {[%emt 0:00:00]} 0-1

[Event "TUR-chT Superleague 2018"]
[Site "Ankara"]
[Date "2018.07.27"]
[Round "3"]
[White "Zeydan, Salih"]
[Black "Gok, Fatih"]
[Result "1-0"]
[ECO "B01"]
[WhiteElo "2061"]
[BlackElo "1952"]
[Annotator "NA"]
[PlyCount "57"]
[EventDate "2018.07.25"]
[EventType "team-tourn"]
[EventCountry "TUR"]
[SourceTitle "playchess.com"]
[Source "ChessBase"]
[SourceQuality "1"]
[TimeControl "40/5400+30:1800+30"]

1. e4 {[%emt 0:00:30]} d5 {[%emt 0:01:00]} 2. exd5 {[%emt 0:00:30]} Qxd5 {[%emt 0:00:00]} 3. Nc3 {[%emt 0:00:30]} Qd6 {[%emt 0:00:00]} 4. d4 {[%emt 0:02:30]} Nf6 {[%emt 0:00:00]} 5. h3 {[%emt 0:03:30]} g6 {[%emt 0:00:00]} 6. Nf3 {[%emt 0:02:30]} Bg7 {[%emt 0:01:30]} 7. Bc4 {[%emt 0:10:30]} O-O {[%emt 0:00:00]} 8. O-O {[%emt 0:00:30]} a6 {[%emt 0:00:00]} 9. a4 {[%emt 0:02:30]} Nc6 {[%emt 0:04:30]} 10. Re1 {[%emt 0:21:30]} Rd8 {[%emt 0:11:30]} 11. Qe2 {[%emt 0:09:30]} e6 {[%emt 0:11:30]} 12. Bg5 {[%emt 0:06:30]} h6 {[%emt 0:13:30]} 13. Bh4 {[%emt 0:05:30]} g5 {[%emt 0:17:30]} 14. Bg3 {[%emt 0:00:30]} Qb4 {[%emt 0:00:30]} 15. Bb3 {[%emt 0:15:18]} Nxd4 {[%emt 0:15:30]} 16. Nxd4 {[%emt 0:00:31]} Rxd4 {[%emt 0:00:30]} 17. Be5 {[%emt 0:04:39]} Rd7 {[%emt 0:01:30]} 18. Rad1 {[%emt 0:01:41]} Qe7 {[%emt 0:01:29]} 19. Qf3 {[%emt 0:02:20]} Rb8 {[%emt 0:05:54]} 20. Rxd7 {[%emt 0:02:50]} Bxd7 {[%emt 0:00:08]} 21. Bxc7 {[%emt 0:01:51]} Bc6 {[%emt 0:00:02]} 22. Qg3 {[%emt 0:00:01]} Rc8 {[%emt 0:01:48]} 23. Bd6 {[%emt 0:00:34]} Qe8 {[%emt 0:00:49]} 24. h4 {[%emt 0:01:31]} g4 {[%emt 0:04:32]} 25. Be5 {[%emt 0:02:30]} Qe7 {[%emt 0:01:39]} 26. Qf4 {[%emt 0:00:46]} Rd8 {[%emt 0:03:20]} 27. Ne2 {[%emt 0:00:44]} Kh8 {[%emt 0:04:37]} 28. Ng3 {[%emt 0:00:57]} Rg8 {[%emt 0:00:35]} 29. Nh5 {[%emt 0:00:36]} 1-0

[Event "TUR-chT Superleague 2018"]
[Site "Ankara"]
[Date "2018.07.27"]
[Round "3"]
[White "Korkmaz, Necmettin"]
[Black "Esen, Baris"]
[Result "0-1"]
[ECO "B08"]
[WhiteElo "2056"]
[BlackElo "2487"]
[Annotator "ChessBase"]
[PlyCount "140"]
[EventDate "2018.07.25"]
[EventType "team-tourn"]
[EventCountry "TUR"]
[SourceTitle "playchess.com"]
[Source "ChessBase"]
[SourceQuality "1"]
[TimeControl "40/5400+30:1800+30"]

1. e4 g6 2. d4 Bg7 3. Nc3 d6 4. Nf3 Nf6 5. h3 c6 6. a4 O-O 7. Be2 Nbd7 8. O-O e5 9. dxe5 dxe5 10. Qd6 Re8 11. Rd1 Bf8 12. Qd3 Qc7 13. Bg5 h6 14. Bh4 Nc5 15. Qe3 Nh5 16. Nh2 Nf4 17. Ng4 Nxe2+ 18. Qxe2 Bxg4 19. Qxg4 Be7 20. Bxe7 Qxe7 21. b3 Rad8 22. Ne2 Ne6 23. Qg3 Qc5 24. c3 a5 25. Rab1 Rd6 26. Rxd6 Qxd6 27. Qe3 Kg7 28. b4 Ra8 29. bxa5 Nc5 30. f4 Rxa5 31. fxe5 Qxe5 32. Qd4 Qxd4+ 33. cxd4 Nxe4 34. Rxb7 Rxa4 35. Re7 Ra1+ 36. Kh2 Nd2 37. Rc7 Re1 38. Nc3 Rc1 39. Ne2 Rc4 40. Nf4 Kf6 41. Nd3 {[%emt 1:48:30]} Rxd4 {[%emt 1:55:00]} 42. Rxc6+ {[%emt 0:00:30]} Kg7 {[%emt 0:00:30]} 43. Ne5 {[%emt 0:00:30]} Rd5 {[%emt 0:02:30]} 44. Ng4 {[%emt 0:02:30]} h5 {[%emt 0:00:30]} 45. Ne3 {[%emt 0:01:30]} Rd3 {[%emt 0:01:30]} 46. Nc4 {[%emt 0:03:30]} Nf1+ {[%emt 0:01:30]} 47. Kg1 {[%emt 0:00:30]} Ng3 {[%emt 0:00:30]} 48. Ne5 {[%emt 0:03:30]} Rd5 {[%emt 0:03:20]} 49. Nf3 {[%emt 0:00:30]} g5 {[%emt 0:00:31]} 50. Rc4 {[%emt 0:04:55]} f6 {[%emt 0:00:37]} 51. Kf2 {[%emt 0:00:44]} h4 {[%emt 0:00:52]} 52. Nxh4 {[%emt 0:00:56]} gxh4 {[%emt 0:01:27]} 53. Rxh4 {[%emt 0:00:06]} Nf5 {[%emt 0:00:47]} 54. Rg4+ {[%emt 0:02:22]} Kf7 {[%emt 0:00:28]} 55. Rf4 {[%emt 0:01:07]} Ng7 {[%emt 0:00:56]} 56. g4 {[%emt 0:00:19]} Ne6 {[%emt 0:03:42]} 57. Ra4 {[%emt 0:01:36]} Rd2+ {[%emt 0:00:13]} 58. Kg3 {[%emt 0:00:13]} Rd3+ {[%emt 0:00:33]} 59. Kg2 {[%emt 0:00:10]} Rd4 {[%emt 0:06:03]} 60. Rxd4 {[%emt 0:01:13]} Nxd4 {[%emt 0:00:06]} 61. Kg3 {[%emt 0:00:11]} Ke6 {[%emt 0:00:36]} 62. Kf4 {[%emt 0:00:51]} Nc6 {[%emt 0:01:37]} 63. h4 {[%emt 0:06:03]} Ne5 {[%emt 0:03:30]} 64. g5 {[%emt 0:02:43]} Ng6+ {[%emt 0:00:49]} 65. Kg3 {[%emt 0:01:26]} f5 {[%emt 0:00:30]} 66. h5 {[%emt 0:00:30]} Ne7 {[%emt 0:00:08]} 67. Kh4 {[%emt 0:01:48]} Ke5 {[%emt 0:01:05]} 68. h6 {[%emt 0:00:24]} f4 {[%emt 0:00:41]} 69. Kh5 {[%emt 0:00:55]} Kf5 {[%emt 0:00:32]} 70. h7 {[%emt 0:03:50]} Ng6 {[%emt 0:00:08]} 0-1

[Event "TUR-chT Superleague 2018"]
[Site "Ankara"]
[Date "2018.07.27"]
[Round "3"]
[White "Ozbek, Busra"]
[Black "Sahin, Hayrun Nisa"]
[Result "1/2-1/2"]
[ECO "A48"]
[WhiteElo "1848"]
[BlackElo "1736"]
[Annotator "NA"]
[PlyCount "92"]
[EventDate "2018.07.25"]
[EventType "team-tourn"]
[EventCountry "TUR"]
[SourceTitle "playchess.com"]
[Source "ChessBase"]
[SourceQuality "1"]
[TimeControl "40/5400+30:1800+30"]

1. d4 Nf6 2. Nf3 g6 3. Bg5 Bg7 4. Nbd2 O-O 5. c3 d6 6. e4 c5 7. dxc5 dxc5 8. Be2 Qc7 9. h3 h6 10. Be3 b6 11. O-O Bb7 12. Qc2 Nc6 13. a4 Rac8 14. Nc4 Rfd8 15. Rad1 Nxe4 16. Qxe4 Nd4 17. Qg4 Nxe2+ 18. Kh1 h5 19. Qh4 Bxf3 20. gxf3 Qb7 21. Kg2 Nd4 22. cxd4 cxd4 23. b3 dxe3 24. fxe3 a6 25. Qf4 b5 26. Ne5 Bxe5 27. Qxe5 Rxd1 28. Rxd1 Rc2+ 29. Kg1 Qc7 30. Qxc7 Rxc7 31. axb5 axb5 32. Rd5 Rb7 33. b4 Kg7 34. Kf2 Kf6 35. Kg3 Ke6 36. Rc5 Kf6 37. Kf4 Rb6 38. e4 Rb7 39. e5+ Kg7 40. Ke4 Kh6 41. Kf4 {[%emt 1:40:30]} f6 {[%emt 2:04:13]} 42. Ke4 {[%emt 0:05:30]} Rb6 {[%emt 0:05:22]} 43. Kf4 {[%emt 0:08:30]} g5+ {[%emt 0:05:22]} 44. Ke4 {[%emt 0:06:30]} Kg6 {[%emt 0:00:42]} 45. exf6 {[%emt 0:04:20]} exf6 {[%emt 0:00:28]} 46. Rd5 {[%emt 0:02:43]} Rb8 {[%emt 0:04:45]} 1/2-1/2

[Event "TUR-chT Superleague 2018"]
[Site "Ankara"]
[Date "2018.07.27"]
[Round "3"]
[White "Onur, Cigdem"]
[Black "Celik, Eda"]
[Result "1-0"]
[ECO "B13"]
[WhiteElo "1750"]
[BlackElo "1864"]
[Annotator "NA"]
[PlyCount "81"]
[EventDate "2018.07.25"]
[EventType "team-tourn"]
[EventCountry "TUR"]
[SourceTitle "playchess.com"]
[Source "ChessBase"]
[SourceQuality "1"]
[TimeControl "40/5400+30:1800+30"]

1. d4 d5 2. Bf4 c5 3. e3 cxd4 4. exd4 Nc6 5. c3 Bf5 6. Bd3 Bxd3 7. Qxd3 e6 8. Nd2 Bd6 9. Bg3 Nf6 10. Ngf3 O-O 11. O-O Bxg3 12. hxg3 Qd6 13. Rae1 Rac8 14. Ne5 Nd7 15. f4 f6 16. Nxd7 Qxd7 17. Re3 Rfe8 18. Nf3 Ne7 19. g4 Ng6 20. g3 Re7 21. Rfe1 Rce8 22. Kf2 Nh8 23. Rh1 g6 24. g5 fxg5 25. Nxg5 b6 26. Qf1 Qa4 27. a3 Qc2+ 28. Re2 Qf5 29. Qd1 Rg7 30. Re5 Qf6 31. Qa4 Rge7 32. Nxh7 Qg7 33. Ng5 Qf6 34. Qd1 Nf7 35. Nxf7 Rxf7 36. Qg4 Rh7 {[%emt 1:18:30]} 37. Rxh7 {[%emt 1:22:30]} Kxh7 {[%emt 0:00:30]} 38. Qe2 {[%emt 0:00:30]} Kg7 {[%emt 0:00:30]} 39. Rxd5 {[%emt 0:00:30]} Rh8 {[%emt 0:00:30]} 40. Rd7+ {[%emt 0:00:30]} Kf8 {[%emt 0:30:30]} 41. Qa6 {[%emt 0:31:30]} 1-0

[Event "TUR-chT Superleague 2018"]
[Site "Ankara"]
[Date "2018.07.27"]
[Round "3"]
[White "Yorgun, Yarennaz"]
[Black "Balajayeva, Khanim"]
[Result "0-1"]
[ECO "B01"]
[WhiteElo "1737"]
[BlackElo "2332"]
[Annotator "NA"]
[PlyCount "124"]
[EventDate "2018.07.25"]
[EventType "team-tourn"]
[EventCountry "TUR"]
[SourceTitle "playchess.com"]
[Source "ChessBase"]
[SourceQuality "1"]
[TimeControl "40/5400+30:1800+30"]

1. e4 d5 2. exd5 Qxd5 3. Nc3 Qd6 4. d4 Nf6 5. Nf3 g6 6. h3 Bg7 7. Be3 O-O 8. Qd2 a6 9. Be2 b5 10. a3 Bb7 11. O-O Nbd7 12. Bf4 Qb6 13. Rad1 Rad8 14. Be3 Ba8 15. Qc1 Qb8 16. Rfe1 Qc8 17. Na2 Nb6 18. b3 Nbd5 19. c4 bxc4 20. bxc4 Nxe3 21. Qxe3 e6 22. Nb4 a5 23. Nd3 Ne4 24. Nc1 c5 25. Nb3 cxd4 26. Nbxd4 Qc5 27. Bf1 a4 28. Nc2 Qe7 29. Nb4 Bc3 30. Rxd8 Rxd8 31. Rc1 Bxb4 32. axb4 Qxb4 33. c5 Qb3 34. Qe1 Rc8 35. c6 Nd6 36. c7 Qb6 37. Qc3 Ne8 38. Qa3 Bxf3 39. gxf3 Rxc7 40. Rxc7 Nxc7 41. Qxa4 Nd5 42. Qa8+ Kg7 43. Qa1+ f6 44. Qa4 Qd6 45. Qa7+ Kh6 46. Qd4 {[%emt 1:57:00]} Qf4 {[%emt 1:52:30]} 47. Qxf4+ {[%emt 0:06:30]} Nxf4 {[%emt 0:00:30]} 48. Kh2 {[%emt 0:00:30]} Kg5 {[%emt 0:00:30]} 49. Kg3 {[%emt 0:00:30]} Nh5+ {[%emt 0:00:00]} 50. Kg2 {[%emt 0:00:00]} Kh4 {[%emt 0:00:00]} 51. Bc4 {[%emt 0:00:00]} Nf4+ {[%emt 0:00:30]} 52. Kh2 {[%emt 0:00:30]} Nxh3 {[%emt 0:02:30]} 53. Bxe6 {[%emt 0:00:30]} Nxf2 {[%emt 0:00:00]} 54. Bg8 {[%emt 0:00:00]} h5 {[%emt 0:00:00]} 55. Bh7 {[%emt 0:01:00]} Kg5 {[%emt 0:00:30]} 56. Kg3 {[%emt 0:00:30]} Nd3 {[%emt 0:00:30]} 57. Kg2 {[%emt 0:01:30]} Ne5 {[%emt 0:01:30]} 58. Kg3 {[%emt 0:00:30]} h4+ {[%emt 0:00:30]} 59. Kf2 {[%emt 0:01:53]} Kf4 {[%emt 0:00:30]} 60. Kg2 {[%emt 0:00:00]} f5 {[%emt 0:00:30]} 61. Kh3 {[%emt 0:00:59]} g5 {[%emt 0:00:30]} 62. Kg2 {[%emt 0:00:30]} Nxf3 {[%emt 0:00:30]} 0-1